bitfinex-derivatives/quotes_SOLF0:USTF0_20250329
["timestamp","ask_amount","ask_price","bid_price","bid_amount"]
[1743283277371,5.04674465,124.64,124.62,8.0271]
[1743283277677,44.22726532,124.66,124.62,8.0271]
[1743283277977,5.04582961,124.65,124.62,8.0271]
[1743283278175,44.22726532,124.66,124.63,0.05214098]
[1743283278474,5.04537079,124.65,124.63,0.05214098]
[1743283278674,44.22726532,124.66,124.63,0.05214098]
[1743283278974,5.0443244,124.65,124.63,0.05214098]
[1743283279174,44.22726532,124.66,124.63,0.05214098]
[1743283279380,5.04423708,124.65,124.63,0.05214098]
[1743283279678,44.22726532,124.66,124.63,0.05214098]
[1743283279876,5.04327354,124.65,124.63,0.05214098]
[1743283280077,44.22726532,124.66,124.63,0.05214098]
[1743283280376,5.04329764,124.65,124.63,0.05214098]
[1743283280578,44.22726532,124.66,124.63,0.05214098]
[1743283280775,5.04172149,124.65,124.63,0.05214098]
[1743283280972,44.22726532,124.66,124.63,0.05214098]
[1743283281174,5.04171059,124.65,124.63,0.05214098]
[1743283281373,44.22726532,124.66,124.63,0.05214098]
[1743283281573,13.06676977,124.65,124.63,0.05214098]
[1743283281773,36.20226532,124.66,124.63,0.05214098]
[1743283282076,5.04096136,124.65,124.63,0.05214098]
[1743283282276,44.22756532,124.66,124.63,0.05214098]
[1743283282477,5.04053324,124.65,124.63,0.05214098]
[1743283282673,44.22756532,124.66,124.63,0.05214098]
[1743283282873,5.04025128,124.65,124.63,0.05214098]
[1743283283072,44.22756532,124.66,124.63,0.05214098]
[1743283283375,5.04022026,124.65,124.63,0.05214098]
[1743283283569,44.22756532,124.66,124.63,0.05214098]
[1743283283765,5.03737263,124.65,124.63,0.05214098]
[1743283283971,37.0053,124.66,124.63,0.05214098]
[1743283284378,5.02973862,124.65,124.63,0.05214098]
[1743283284579,37.0053,124.66,124.63,0.05214098]
[1743283284879,5.03054798,124.65,124.63,0.05214098]
[1743283285077,37.0053,124.66,124.63,0.05214098]
[1743283285277,5.03148464,124.65,124.63,0.05214098]
[1743283285478,37.0053,124.66,124.63,0.05214098]
[1743283285680,5.03187962,124.65,124.63,0.05214098]
[1743283285873,44.22756532,124.66,124.63,0.05214098]
[1743283286073,5.03107267,124.65,124.63,0.05214098]
[1743283286277,44.22756532,124.66,124.63,0.05214098]
[1743283288483,37.0053,124.66,124.63,0.05214098]
[1743283290480,8.0255,124.65,124.63,0.05214098]
[1743283294586,44.22736532,124.66,124.63,0.05214098]
[1743283295886,44.22736532,124.66,124.63,8.07864098]
[1743283296789,36.20226532,124.66,124.63,8.07864098]
[1743283296984,36.20226532,124.66,124.64,8.0257]
[1743283297184,28.98,124.66,124.64,8.0257]
[1743283298182,272.02226532,124.68,124.66,8.0248]
[1743283298388,5.02885612,124.67,124.66,8.0248]
[1743283298686,2.2584,124.72,124.66,8.0248]
[1743283298687,28.96,124.71,124.69,8.0227]
[1743283298879,5.0301029,124.7,124.69,8.0227]
[1743283299078,5.0301029,124.7,124.69,8.07955748]
[1743283299487,28.96,124.72,124.7,8.0222]
[1743283299686,5.02942464,124.71,124.7,8.0222]
[1743283300385,44.43109993,124.73,124.7,8.0222]
[1743283300580,5.02980386,124.72,124.69,8.07945748]
[1743283300783,73.39109993,124.73,124.69,8.07945748]
[1743283300984,5.02789363,124.72,124.69,8.07945748]
[1743283301183,73.39109993,124.73,124.69,8.07945748]
[1743283301388,5.02884474,124.72,124.69,8.07945748]
[1743283301687,73.39109993,124.73,124.69,8.07945748]
[1743283301987,5.02948282,124.72,124.69,8.07945748]
[1743283302183,28.96,124.73,124.69,8.07945748]
[1743283302387,5.03044204,124.72,124.69,8.07945748]
[1743283302588,28.96,124.73,124.69,8.07945748]
[1743283303184,7.22226532,124.71,124.6,365.0]
[1743283303383,7.22226532,124.69,124.6,9.39726532]
[1743283303585,5.02655423,124.68,124.6,9.39726532]
[1743283303786,28.96,124.67,124.6,9.39726532]
[1743283304179,28.96,124.69,124.62,7.22226532]
[1743283304384,0.05561945,124.65,124.62,15.30430478]
[1743283304892,0.05561945,124.65,124.63,8.0265]
[1743283306291,0.05561945,124.65,124.64,15.24836532]
[1743283306493,28.96,124.69,124.64,15.24836532]
[1743283306692,7.22226532,124.71,124.64,7.22226532]
[1743283306887,28.96,124.69,124.64,7.22226532]
[1743283307284,28.96,124.69,124.65,8.0251]
[1743283307485,28.96,124.69,124.66,0.06116645]
[1743283309497,8.0223,124.7,124.66,0.06116645]
[1743283309795,36.9823,124.7,124.66,0.06116645]
[1743283311897,36.9823,124.7,124.66,8.08586645]
[1743283313093,28.96,124.7,124.67,8.0242]
[1743283315398,36.9823,124.7,124.67,8.0242]
[1743283315700,36.9823,124.7,124.66,8.08566645]
[1743283324201,12.26094517,124.69,124.66,0.06116645]
[1743283324504,7.22226532,124.69,124.66,0.06116645]
[1743283324811,5.03922572,124.68,124.66,0.06116645]
[1743283325011,8.0242,124.67,124.66,0.06116645]
[1743283325711,8.0238,124.68,124.66,0.06116645]
[1743283326410,8.0242,124.67,124.66,0.06116645]
[1743283328512,8.0239,124.68,124.66,0.06116645]
[1743283329513,15.24546532,124.69,124.66,0.06116645]
[1743283329706,5.04028734,124.68,124.66,0.06116645]
[1743283329902,15.24546532,124.69,124.66,0.06116645]
[1743283330111,13.06311974,124.68,124.66,0.06116645]
[1743283330310,8.0236,124.68,124.66,0.06116645]
[1743283337214,15.24546532,124.69,124.66,0.06116645]
[1743283337415,5.04496363,124.68,124.66,0.06116645]
[1743283337620,28.96,124.7,124.66,8.08566645]
[1743283337816,5.04574517,124.69,124.66,0.06116645]
[1743283338013,28.96,124.7,124.67,8.0239]
[1743283338213,5.04623533,124.69,124.67,8.0239]
[1743283338417,28.96,124.7,124.67,8.0239]
[1743283338618,5.04701755,124.69,124.67,8.0239]
[1743283338812,28.96,124.7,124.67,8.0239]
[1743283339016,5.04706108,124.69,124.67,8.0239]
[1743283339217,28.96,124.7,124.67,8.0239]
[1743283339519,5.04716249,124.69,124.67,8.0239]
[1743283339719,28.96,124.7,124.67,8.0239]
[1743283340011,5.04784741,124.69,124.67,8.0239]
[1743283340213,36.9623,124.7,124.67,8.0239]
[1743283340413,5.05001605,124.69,124.67,8.0239]
[1743283340715,28.94,124.7,124.67,8.0239]
[1743283340910,5.05116794,124.69,124.67,8.0239]
[1743283341115,28.94,124.7,124.67,8.0239]
[1743283341420,5.05152281,124.69,124.67,8.0239]
[1743283341613,28.94,124.7,124.67,8.0239]
[1743283341811,5.05279624,124.69,124.67,8.0239]
[1743283342012,36.9623,124.7,124.67,8.0239]
[1743283342214,5.05284086,124.69,124.67,8.0239]
[1743283342422,36.9623,124.7,124.67,8.0239]
[1743283342621,5.05432024,124.69,124.67,8.0239]
[1743283342819,36.9623,124.7,124.67,8.0239]
[1743283343124,5.05467651,124.69,124.67,8.0239]
[1743283343321,36.9623,124.7,124.67,8.0239]
[1743283343522,5.05582862,124.69,124.67,8.0239]
[1743283343723,36.9623,124.7,124.67,8.0239]
[1743283343918,5.05585479,124.69,124.67,8.0239]
[1743283344118,36.9623,124.7,124.67,8.0239]
[1743283344424,5.05596706,124.69,124.66,8.08566645]
[1743283344623,36.9623,124.7,124.66,8.08566645]
[1743283344823,5.05584057,124.69,124.66,8.08566645]
[1743283345022,36.9623,124.7,124.66,8.08566645]
[1743283345222,5.05583961,124.69,124.66,8.08566645]
[1743283345422,36.9623,124.7,124.66,8.08566645]
[1743283345625,5.0564784,124.69,124.66,8.08566645]
[1743283345825,36.9623,124.7,124.66,8.08566645]
[1743283346123,5.05651733,124.69,124.66,8.08566645]
[1743283346325,36.9623,124.7,124.67,8.0242]
[1743283346523,5.05669797,124.69,124.67,8.0242]
[1743283346823,28.94,124.7,124.67,8.0242]
[1743283347026,5.05817582,124.69,124.67,8.0242]
[1743283347227,28.94,124.7,124.67,8.0242]
[1743283347428,5.05848017,124.69,124.67,8.0242]
[1743283347629,5.06010739,124.68,124.67,8.0242]
[1743283348128,28.94,124.7,124.67,8.0242]
[1743283348327,5.05979753,124.69,124.67,8.0242]
[1743283348528,5.0599863,124.68,124.67,8.0242]
[1743283348724,28.94,124.7,124.66,7.28343177]
[1743283348929,5.06034631,124.69,124.66,7.28343177]
[1743283349131,28.94,124.7,124.66,7.28343177]
[1743283349328,36.9613,124.72,124.66,7.28343177]
[1743283349629,5.06081334,124.71,124.66,7.28343177]
[1743283349832,5.06081334,124.7,124.66,7.28343177]
[1743283350030,36.9613,124.72,124.69,8.0226]
[1743283350228,5.06127644,124.71,124.68,7.22226532]
[1743283350436,28.94,124.73,124.69,0.05805333]
[1743283350733,28.94,124.73,124.71,8.0213]
[1743283351333,28.94,124.73,124.72,8.021]
[1743283351535,5.05952055,124.73,124.72,8.021]
[1743283352233,5.05752662,124.73,124.72,8.021]
[1743283352533,5.05752662,124.73,124.69,0.05805333]
[1743283352733,264.7,124.74,124.69,0.05805333]
[1743283352934,5.05724554,124.73,124.69,0.05805333]
[1743283353135,264.7,124.74,124.72,8.0205]
[1743283353335,5.0557493,124.73,124.72,8.0205]
[1743283353636,5.0557493,124.73,124.72,8.07519914]
[1743283353832,264.7,124.74,124.72,8.07519914]
[1743283353833,264.7,124.74,124.73,8.0203]
[1743283354132,28.92,124.75,124.72,0.05469914]
[1743283354327,28.92,124.75,124.74,8.0197]
[1743283354523,5.05383099,124.75,124.74,8.0197]
[1743283356137,28.92,124.76,124.74,8.0197]
[1743283356733,5.04672456,124.75,124.74,8.0197]
[1743283356938,5.04672456,124.75,124.73,8.02]
[1743283357139,28.92,124.76,124.73,8.02]
[1743283357438,5.04513192,124.75,124.73,8.02]
[1743283357631,28.92,124.76,124.73,8.02]
[1743283357829,5.04442077,124.75,124.73,8.02]
[1743283358031,28.92,124.76,124.73,8.02]
[1743283358234,5.04435563,124.75,124.73,8.02]
[1743283358439,28.92,124.76,124.73,8.02]
[1743283358638,5.04287578,124.75,124.73,8.02]
[1743283358841,28.92,124.76,124.73,8.02]
[1743283359038,5.04291616,124.75,124.73,8.02]
[1743283359239,28.92,124.76,124.73,8.02]
[1743283359434,5.04140141,124.75,124.73,8.02]
[1743283359637,28.92,124.76,124.73,8.02]
[1743283359838,5.04140141,124.75,124.73,8.02]
[1743283360034,28.92,124.76,124.73,8.02]
[1743283360234,5.0414496,124.75,124.73,8.02]
[1743283360435,28.92,124.76,124.73,8.02]
[1743283364635,36.9384,124.76,124.73,8.02]
[1743283366642,28.92,124.76,124.73,8.02]
[1743283371241,28.92,124.76,124.73,8.0202]
[1743283373548,36.9385,124.76,124.72,8.07539914]
[1743283374153,36.9185,124.76,124.72,8.07539914]
[1743283375450,28.9,124.76,124.72,0.05469914]
[1743283376156,28.9,124.76,124.73,8.02]
[1743283382962,28.9,124.76,124.73,8.0202]
[1743283384462,5.04673416,124.75,124.73,8.0202]
[1743283384764,28.9,124.76,124.73,8.0202]
[1743283384964,5.04697964,124.75,124.73,8.0202]
[1743283385263,28.9,124.76,124.73,8.0202]
[1743283385563,5.04789182,124.75,124.73,8.0202]
[1743283385763,28.9,124.76,124.73,8.0202]
[1743283386061,5.04788491,124.75,124.73,8.0202]
[1743283386364,28.9,124.76,124.73,8.0202]
[1743283386663,5.04899183,124.75,124.73,8.0202]
[1743283386863,28.9,124.76,124.73,8.0202]
[1743283388163,5.05274728,124.75,124.73,8.0202]
[1743283388365,28.9,124.76,124.73,8.0202]
[1743283388663,5.05300116,124.75,124.73,8.0202]
[1743283388857,36.9189,124.76,124.72,8.07549914]
[1743283389057,12.27606721,124.75,124.72,0.05469914]
[1743283389257,5.05380189,124.74,124.72,0.05469914]
[1743283389463,28.9,124.73,124.72,0.05469914]
[1743283389864,33.95521734,124.73,124.72,0.05469914]
[1743283390466,41.97551734,124.73,124.72,0.05469914]
[1743283391770,33.95875365,124.73,124.72,0.05469914]
[1743283394370,33.96216093,124.73,124.72,0.05469914]
[1743283401874,5.06216093,124.73,124.72,8.07569914]
[1743283402074,28.9,124.76,124.72,0.05469914]
[1743283402374,5.06675631,124.75,124.71,8.0213]
[1743283402570,5.06675631,124.74,124.73,0.05436567]
[1743283404377,5.06675631,124.74,124.73,8.07466567]
[1743283405178,5.06675631,124.74,124.73,0.05436567]
[1743283405678,5.06830841,124.74,124.73,0.05436567]
[1743283407576,5.06714888,124.74,124.73,0.05436567]
[1743283408878,12.2894142,124.74,124.68,2.0299]
[1743283409078,33.96714888,124.73,124.67,7.22226532]
[1743283409273,5.06714888,124.72,124.67,7.22226532]
[1743283409478,5.06714888,124.71,124.69,8.0228]
[1743283409678,5.06714888,124.7,124.69,8.0228]
[1743283410079,5.06714888,124.7,124.68,0.05206948]
[1743283410279,0.05090274,124.71,124.68,0.05206948]
[1743283410582,5.06409746,124.7,124.68,0.05206948]
[1743283410881,28.9,124.7,124.68,0.05206948]
[1743283411177,5.06280182,124.69,124.68,0.05206948]
[1743283412183,13.08570182,124.69,124.68,0.05206948]
[1743283412584,13.08151976,124.69,124.68,0.05206948]
[1743283412785,8.0236,124.68,124.64,8.0258]
[1743283413181,33.95799125,124.67,124.61,2.1622]
[1743283413377,28.9,124.67,124.61,2.1622]
[1743283413783,0.0550448,124.65,124.63,0.05910744]
[1743283413981,0.0550448,124.65,124.63,8.08550744]
[1743283415986,0.0550448,124.65,124.63,0.05910744]
[1743283416384,28.9,124.64,124.63,0.05910744]
[1743283418991,36.9261,124.64,124.63,0.05910744]
[1743283421895,36.12226532,124.64,124.56,36.12226532]
[1743283422097,36.12226532,124.64,124.56,7.22226532]
[1743283422793,8.0279,124.62,124.58,8.03]
[1743283422994,28.95853854,124.61,124.59,0.05713782]
[1743283423301,36.98693854,124.61,124.59,0.05713782]
[1743283423491,28.95853854,124.61,124.59,0.05713782]
[1743283423999,8.0287,124.6,124.59,0.05713782]
[1743283431106,8.0287,124.6,124.59,0.05713782]
[1743283433105,44.20920386,124.61,124.59,0.05713782]
[1743283433709,36.98693854,124.61,124.59,0.05713782]
[1743283434207,28.95853854,124.61,124.59,0.05713782]
[1743283439408,0.05853854,124.61,124.59,0.05713782]
[1743283439609,28.95853854,124.61,124.59,0.05713782]
[1743283440508,28.95853854,124.61,124.59,8.08643782]
[1743283444407,0.05853854,124.61,124.59,8.08643782]
[1743283444611,28.95853854,124.61,124.59,8.08643782]
[1743283446109,0.05853854,124.61,124.59,8.08643782]
[1743283446312,28.95853854,124.61,124.59,8.08643782]
[1743283449208,28.95853854,124.61,124.59,0.05713782]
[1743283456317,36.18080386,124.61,124.59,0.05713782]
[1743283456912,44.20910386,124.61,124.59,0.05713782]
[1743283457818,5.04182019,124.6,124.59,0.05713782]
[1743283458620,5.04495075,124.6,124.59,0.05713782]
[1743283460416,33.94495075,124.6,124.59,0.05713782]
[1743283460717,33.95293628,124.6,124.59,0.05713782]
[1743283472729,33.96427732,124.6,124.59,0.05713782]
[1743283474527,33.96386337,124.6,124.59,0.05713782]
[1743283475329,33.96414297,124.6,124.59,0.05713782]
[1743283476430,5.06414297,124.6,124.59,8.08643782]
[1743283478732,0.05853854,124.61,124.6,8.0287]
[1743283478936,1.80764934,124.61,124.6,8.0287]
[1743283479134,293.5,124.64,124.59,7.27940314]
[1743283479335,293.5,124.64,124.62,8.0273]
[1743283480029,293.5,124.64,124.62,8.07834573]
[1743283480030,293.55747854,124.64,124.62,8.07834573]
[1743283482732,264.67747854,124.64,124.62,8.07834573]
[1743283483227,264.67747854,124.64,124.63,8.0267]
[1743283486142,0.05747854,124.64,124.63,8.0267]
[1743283492743,7.22226532,124.69,124.67,8.0239]
[1743283492935,36.10226532,124.69,124.67,8.0239]
[1743283493540,7.22226532,124.69,124.63,7.22226532]
[1743283493838,0.05198757,124.67,124.65,0.05654143]
[1743283494042,0.05198757,124.67,124.66,8.0248]
[1743283499145,0.05198757,124.67,124.66,10.0276]
[1743283500149,7.22226532,124.73,124.66,2.0028]
[1743283500350,36.08226532,124.73,124.66,4.1749]
[1743283500543,7.22226532,124.71,124.66,2.0028]
[1743283500743,28.86,124.7,124.66,2.0028]
[1743283500949,36.08226532,124.72,124.66,2.0028]
[1743283501143,36.882,124.71,124.66,2.0028]
[1743283501340,36.882,124.71,124.68,0.05213611]
[1743283504950,8.0224,124.7,124.68,0.05213611]
[1743283506348,36.8819,124.71,124.68,0.05213611]
[1743283507748,8.0223,124.7,124.68,0.05213611]
[1743283507947,7.22226532,124.7,124.68,0.05213611]
[1743283508143,9.35196532,124.7,124.68,0.05213611]
[1743283508452,8.0229,124.69,124.68,0.05213611]
[1743283508852,9.35196532,124.7,124.62,365.0]
[1743283509049,9.35196532,124.7,124.61,7.22226532]
[1743283509050,8.0245,124.67,124.63,8.0267]
[1743283509245,36.8845,124.67,124.63,8.0267]
[1743283509553,7.22226532,124.66,124.59,7.22226532]
[1743283509747,8.0265,124.64,124.6,8.0283]
[1743283510053,28.916975,124.63,124.61,0.05453558]
[1743283511153,36.943775,124.63,124.61,0.05453558]
[1743283511454,28.916975,124.63,124.61,0.05453558]
[1743283512754,28.916975,124.63,124.61,8.08223558]
[1743283513258,28.916975,124.63,124.61,0.05453558]
[1743283516762,8.0274,124.62,124.61,0.05453558]
[1743283520857,8.0289,124.6,124.55,7.22226532]
[1743283521053,28.86,124.59,124.55,7.22226532]
[1743283521257,28.86,124.59,124.56,8.0308]
[1743283521962,28.91136002,124.59,124.56,8.08890308]
[1743283522858,7.22226532,124.58,124.47,133.99930975]
[1743283523062,7.22226532,124.54,124.47,141.22157507]
[1743283523266,7.22226532,124.52,124.47,133.99930975]
[1743283523957,0.05698876,124.51,124.49,0.05140748]
[1743283526375,28.86,124.5,124.49,0.05140748]
[1743283532973,28.86,124.5,124.49,8.08720748]
[1743283533480,0.05698876,124.51,124.49,8.08720748]
[1743283533669,0.05698876,124.51,124.5,8.0351]
[1743283539273,2.0988,124.57,124.55,8.0314]
[1743283539480,28.88,124.55,124.51,7.22226532]
[1743283539779,28.88,124.56,124.51,7.22226532]
[1743283540090,28.88,124.56,124.55,8.0319]
[1743283541278,0.05784632,124.57,124.54,0.06028892]
[1743283541477,28.93784632,124.57,124.54,0.06028892]
[1743283541881,0.05784632,124.57,124.54,0.06028892]
[1743283544184,0.05784632,124.57,124.56,8.0313]
[1743283551490,28.91784632,124.57,124.56,8.0313]
[1743283556495,28.91784632,124.57,124.54,0.06028892]
[1743283556796,7.22226532,124.55,124.47,7.22226532]
[1743283556999,36.8926,124.54,124.48,8.0364]
[1743283557899,0.05729585,124.52,124.5,0.05254655]
[1743283560300,8.09119585,124.52,124.5,0.05254655]
[1743283561096,44.11676532,124.51,124.5,0.05254655]
[1743283561302,36.08226532,124.51,124.42,7.22226532]
[1743283561496,7.22226532,124.48,124.42,7.22226532]
[1743283561802,44.11866532,124.48,124.42,15.26216532]
[1743283562503,0.05225091,124.46,124.44,0.05285504]
[1743283563597,28.86,124.45,124.44,0.05285504]
[1743283564205,36.8984,124.45,124.44,0.05285504]
[1743283566805,8.0397,124.43,124.39,2.1652]
[1743283567003,28.86,124.42,124.39,2.1652]
[1743283568007,28.91344076,124.42,124.39,2.21943975]
[1743283571104,0.05344076,124.42,124.39,2.21943975]
[1743283571905,0.05344076,124.42,124.41,8.0409]
[1743283584126,0.05344076,124.42,124.4,8.0414]
[1743283596333,0.05344076,124.42,124.41,8.0409]
[1743283601737,0.05344076,124.42,124.41,10.1548]
[1743283602935,7.22226532,124.5,124.41,30.9739]
[1743283603139,7.22226532,124.5,124.43,7.22226532]
[1743283603339,28.86,124.49,124.43,7.22226532]
[1743283603636,36.8961,124.49,124.46,8.0373]
[1743283604135,36.94668309,124.49,124.46,8.09356328]
[1743283604637,28.91058309,124.49,124.46,8.09356328]
[1743283608841,28.91058309,124.49,124.47,8.037]
[1743283609541,28.91058309,124.49,124.46,8.09366328]
[1743283614846,36.94638309,124.49,124.46,8.09366328]
[1743283617342,24.09,124.4,124.31,294.52783401]
[1743283617544,7.22226532,124.32,124.26,52.2544188]
[1743283617741,7.22226532,124.36,124.26,52.2544188]
[1743283617946,36.86226532,124.36,124.27,7.22226532]
[1743283618446,0.05942899,124.34,124.31,0.05780565]
[1743283618641,5.25602734,124.33,124.31,0.05780565]
[1743283618837,0.05942899,124.34,124.31,0.05780565]
[1743283619749,15.32729431,124.34,124.31,0.05780565]
[1743283621347,8.0463,124.33,124.31,0.05780565]
[1743283621841,928.4001002,124.33,124.31,0.05780565]
[1743283622043,966.33724245,124.33,124.31,0.05780565]
[1743283623249,8.0468,124.32,124.31,0.05780565]
[1743283623653,885.41647363,124.32,124.31,0.05780565]
[1743283624660,877.36967363,124.32,124.31,0.05780565]
[1743283624860,931.07642921,124.32,124.31,0.05780565]
[1743283626258,855.40404277,124.33,124.31,0.05780565]
[1743283629163,8.0468,124.32,124.31,0.05780565]
[1743283630363,15.26906532,124.32,124.31,0.05780565]
[1743283631966,1026.30505015,124.32,124.31,0.05780565]
[1743283632664,1018.25825015,124.32,124.31,0.05780565]
[1743283633061,1047.69825015,124.32,124.31,0.05780565]
[1743283633266,1055.74505015,124.32,124.31,0.05780565]
[1743283634367,555.89517583,124.32,124.31,0.05780565]
[1743283635667,547.84837583,124.32,124.31,0.05780565]
[1743283635969,518.40837583,124.32,124.31,0.05780565]
[1743283636863,511.18611051,124.32,124.31,0.05780565]
[1743283637168,845.56619747,124.32,124.31,0.05780565]
[1743283637569,838.92659747,124.32,124.31,0.05780565]
[1743283637763,838.92659747,124.32,124.31,8.10520565]
[1743283638569,1047.2976925,124.33,124.32,8.0468]
[1743283640071,1388.03824436,124.33,124.32,8.0468]
[1743283641365,333.23324955,124.33,124.32,8.0468]
[1743283649170,333.23324955,124.33,124.31,8.10510565]
[1743283649778,341.27944955,124.33,124.31,0.05780565]
[1743283650577,1440.05554079,124.33,124.31,0.05780565]
[1743283651779,8.0468,124.32,124.31,0.05780565]
[1743283653778,15.26906532,124.32,124.31,0.05780565]
[1743283656981,8.0482,124.3,124.27,8.0497]
[1743283657479,8.0482,124.3,124.26,39.3365]
[1743283657674,8.0488,124.29,124.26,39.3365]
[1743283657982,8.0488,124.29,124.26,10.1365]
[1743283658180,8.10101783,124.29,124.26,10.19229343]
[1743283662090,8.0498,124.28,124.26,2.14189343]
[1743283662384,5.49148931,124.27,124.26,0.05579343]
[1743283662985,13.54148931,124.27,124.26,0.05579343]
[1743283663285,5.49148931,124.27,124.22,8.053]
[1743283663491,5.49148931,124.26,124.22,8.053]
[1743283663693,8.0517,124.25,124.22,8.053]
[1743283664392,8.10674445,124.25,124.22,8.1144476]
[1743283664891,0.05504445,124.25,124.22,8.1144476]
[1743283667993,8.10674445,124.25,124.22,0.0614476]
[1743283668597,8.10674445,124.25,124.22,8.1146476]
[1743283669797,0.05504445,124.25,124.22,8.1146476]
[1743283670300,0.05504445,124.25,124.23,8.0526]
[1743283671097,0.05504445,124.25,124.24,8.0519]
[1743283696823,333.23324955,124.31,124.24,7.22226532]
[1743283697023,5.38909858,124.3,124.24,7.22226532]
[1743283697223,333.23324955,124.31,124.24,7.22226532]
[1743283697521,5.39180154,124.3,124.29,8.0487]
[1743283698814,5.39595685,124.3,124.29,8.0487]
[1743283699017,0.06162387,124.31,124.29,8.0487]
[1743283700530,0.06162387,124.31,124.28,8.10326927]
[1743283704129,8.10912387,124.31,124.28,8.10326927]
[1743283704830,5.39561803,124.3,124.28,8.10326927]
[1743283705030,8.10912387,124.31,124.28,8.10326927]
[1743283705231,5.39574947,124.3,124.28,8.10326927]
[1743283705434,8.10912387,124.31,124.28,8.10326927]
[1743283705631,5.39583361,124.3,124.28,8.10326927]
[1743283705831,8.10912387,124.31,124.28,8.10326927]
[1743283706022,5.39583034,124.3,124.28,8.10326927]
[1743283706331,8.10912387,124.31,124.28,8.10326927]
[1743283706534,5.39578965,124.3,124.28,8.10326927]
[1743283706733,8.10912387,124.31,124.28,8.10326927]
[1743283706934,5.39577331,124.3,124.28,8.10326927]
[1743283707133,8.10912387,124.31,124.28,8.10326927]
[1743283707333,5.39535025,124.3,124.28,8.10326927]
[1743283707534,8.10912387,124.31,124.28,8.10326927]
[1743283707734,5.39549682,124.3,124.28,8.10326927]
[1743283708034,8.10912387,124.31,124.28,8.10326927]
[1743283708233,5.39549682,124.3,124.28,8.10326927]
[1743283708438,8.10912387,124.31,124.28,8.10326927]
[1743283708631,5.39471839,124.3,124.28,8.10326927]
[1743283708830,8.10912387,124.31,124.28,8.10326927]
[1743283709028,5.39471839,124.3,124.28,8.10326927]
[1743283709233,8.10912387,124.31,124.28,8.10326927]
[1743283709433,5.3940525,124.3,124.28,8.10326927]
[1743283709634,8.10912387,124.31,124.28,8.10326927]
[1743283709933,5.3940525,124.3,124.28,8.10326927]
[1743283710133,8.10912387,124.31,124.28,8.10326927]
[1743283710330,8.0481,124.3,124.28,0.05416927]
[1743283711030,8.0487,124.29,124.28,0.05416927]
[1743283712437,13.43797445,124.29,124.28,0.05416927]
[1743283714637,20.66023977,124.29,124.28,0.05416927]
[1743283716644,12.61187928,124.29,124.28,0.05416927]
[1743283718642,5.38961396,124.29,124.28,0.05416927]
[1743283720645,36.9484,124.3,124.28,0.05416927]
[1743283721343,5.39109929,124.29,124.28,0.05416927]
[1743283724541,36.9484,124.3,124.28,0.05416927]
[1743283724747,5.39270532,124.29,124.28,0.05416927]
[1743283725248,5.39270532,124.29,124.28,8.10356927]
[1743283726649,0.06162387,124.31,124.28,0.05416927]
[1743283726949,5.39716723,124.3,124.29,8.0487]
[1743283727847,0.06162387,124.31,124.3,8.0481]
[1743283728047,5.46046607,124.31,124.3,8.0481]
[1743283728651,5.46059284,124.31,124.3,8.0481]
[1743283729854,0.06162387,124.31,124.3,8.0481]
[1743283745555,444.3109994,124.35,124.28,7.27643459]
[1743283745757,5.30515879,124.34,124.3,7.22226532]
[1743283745957,444.3109994,124.35,124.3,7.22226532]
[1743283746258,5.30541872,124.34,124.3,7.22226532]
[1743283746466,444.3109994,124.35,124.3,7.22226532]
[1743283746765,5.3603823,124.34,124.31,0.05212901]
[1743283746955,0.05626129,124.34,124.33,8.0461]
[1743283747159,5.36041924,124.34,124.33,8.0461]
[1743283747355,0.05626129,124.34,124.33,8.0461]
[1743283749763,444.3109994,124.35,124.32,38.16816532]
[1743283750062,444.3109994,124.35,124.34,7.22226532]
[1743283750861,444.3109994,124.35,124.34,15.26776532]
[1743283752267,444.3109994,124.35,124.34,8.0455]
[1743283753865,0.06115702,124.36,124.35,8.0448]
[1743283763271,28.88,124.4,124.38,8.0425]
[1743283764368,28.93812523,124.4,124.38,8.0998341]
[1743283765268,0.05812523,124.4,124.39,8.0422]
[1743283765666,0.05812523,124.4,124.38,0.0573341]
[1743283766669,8.10002523,124.4,124.38,0.0573341]
[1743283766868,36.98002523,124.4,124.38,0.0573341]
[1743283767276,8.0422,124.39,124.38,0.0573341]
[1743283771273,13.3346642,124.39,124.38,0.0573341]
[1743283773686,13.33712698,124.39,124.38,0.0573341]
[1743283775084,21.81354515,124.39,124.38,0.0573341]
[1743283775283,21.8156391,124.39,124.38,0.0573341]